bitfinex/quotes_ETHUSD_20240716
["timestamp","ask_amount","ask_price","bid_price","bid_amount"]
[1721161199029,2.87697,3475.9,3475.2,2.87746]
[1721161199173,2.87697,3475.9,3475.3,0.55]
[1721161201387,2.87704,3475.8,3475.3,0.55]
[1721161202607,2.87695,3475.9,3475.4,2.3369]
[1721161202821,2.87695,3475.9,3475.5,0.55]
[1721161203523,2.87682,3476.1,3475.5,0.55]
[1721161203824,2.87695,3475.9,3475.5,0.55]
[1721161203976,2.87682,3476.1,3475.5,0.55]
[1721161204211,3.0,3476.0,3475.5,0.55]
[1721161204756,0.89000516,3476.2,3475.5,0.55]
[1721161205046,2.87654,3476.4,3475.6,2.87714]
[1721161205267,2.87688,3476.0,3475.7,0.55]
[1721161205405,0.89000516,3476.3,3475.7,0.55]
[1721161205406,2.87703,3475.8,3475.7,0.55]
[1721161205608,3.25373352,3475.8,3475.7,0.55]
[1721161206515,7.02076868,3475.8,3475.7,0.55]
[1721161207353,6.13076352,3475.8,3475.7,0.55]
[1721161207644,3.25373352,3475.8,3475.7,0.55]
[1721161207883,4.15049762,3475.8,3475.7,0.55]
[1721161208052,3.25373352,3475.8,3475.7,0.55]
[1721161208228,7.02752762,3475.8,3475.7,0.55]
[1721161208430,2.87759,3475.2,3474.6,2.2843]
[1721161208745,3.77457971,3475.1,3474.3,5.16257]
[1721161208960,2.87771,3475.0,3474.3,2.2843]
[1721161209122,3.77461971,3475.0,3474.3,2.2843]
[1721161209322,0.89690971,3475.0,3474.3,5.16256]
[1721161209528,3.77456971,3475.1,3474.3,5.16256]
[1721161209724,0.89690971,3475.0,3474.3,5.16256]
[1721161210033,3.77456971,3475.1,3474.3,5.16256]
[1721161210212,3.77456971,3475.1,3474.4,0.55]
[1721161210412,0.89690971,3475.0,3474.4,0.55]
[1721161210642,3.77456971,3475.1,3474.4,0.55]
[1721161212107,4.46779719,3475.1,3474.4,0.55]
[1721161212309,0.89690971,3475.0,3474.4,0.55]
[1721161212529,0.89690971,3474.9,3474.4,0.55]
[1721161213042,3.77463971,3475.0,3474.4,0.55]
[1721161213208,2.87773,3475.0,3474.4,0.55]
[1721161213906,3.77463971,3475.0,3474.4,0.55]
[1721161214120,4.15134323,3475.0,3474.4,0.55]
[1721161214416,0.89690971,3474.9,3474.4,0.55]
[1721161215354,4.15134323,3475.0,3474.4,0.55]
[1721161215549,0.89690971,3474.9,3474.4,0.55]
[1721161216676,2.87793,3474.8,3474.4,0.55]
[1721161216813,1.31206403,3474.7,3474.1,0.30052587]
[1721161217016,0.89690971,3474.5,3474.1,0.30052587]
[1721161217454,2.87836,3474.2,3473.7,0.30060247]
[1721161218244,2.87836,3474.2,3473.8,0.55]
[1721161218422,2.87836,3474.2,3473.7,0.30060247]
[1721161218930,0.89690971,3474.3,3473.7,0.30060247]
[1721161219129,2.87836,3474.2,3473.7,0.30060247]
[1721161220019,0.89690971,3474.4,3473.9,2.2749]
[1721161220217,4.78985001,3474.7,3473.9,2.2749]
[1721161220218,0.89690971,3474.7,3474.0,3.4285]
[1721161220531,2.87803,3474.6,3474.0,3.4285]
[1721161220733,3.77493971,3474.6,3474.0,3.4285]
[1721161220931,0.89690971,3474.7,3474.1,2.2749]
[1721161221166,0.89690971,3474.8,3474.2,0.55]
[1721161222156,0.89690971,3474.8,3474.2,3.4283]
[1721161223657,0.89690971,3474.8,3474.2,0.55]
[1721161223869,0.89690971,3474.7,3474.2,0.55]
[1721161224170,3.77489971,3474.7,3474.2,0.55]
[1721161226557,2.87802,3474.6,3474.2,0.55]
[1721161227523,3.77492971,3474.6,3474.2,0.55]
[1721161227832,0.89690971,3474.5,3474.2,0.55]
[1721161228522,2.87802,3474.6,3474.2,0.55]
[1721161229075,0.89690971,3474.7,3474.2,0.55]
[1721161229228,3.77490971,3474.7,3474.2,0.55]
[1721161229431,6.65292971,3474.7,3474.2,0.55]
[1721161229965,3.77490971,3474.7,3474.2,0.55]
[1721161232361,0.89690971,3474.7,3474.2,4.0286713]
[1721161233071,3.77499971,3474.6,3474.2,0.55]
[1721161233272,0.89690971,3474.5,3473.9,0.30000295]
[1721161233485,3.77525971,3474.3,3473.9,0.30000295]
[1721161233637,3.77528971,3474.2,3473.9,0.30000295]
[1721161234142,0.89690971,3474.0,3473.9,0.30000295]
[1721161234354,1.39402464,3474.0,3473.9,0.30000295]
[1721161234539,7.15106464,3474.0,3473.9,0.30000295]
[1721161234941,6.25415493,3474.0,3473.9,0.30000295]
[1721161235441,7.15106464,3474.0,3473.9,0.30000295]
[1721161235774,2.87876,3473.8,3473.4,2.271]
[1721161235997,2.87879,3473.7,3473.5,0.55]
[1721161237468,2.87894,3473.5,3473.4,0.30025722]
[1721161237642,2.8792,3473.2,3472.5,2.3949]
[1721161238021,2.8792,3473.2,3473.0,0.30023996]
[1721161238274,2.8792,3473.2,3472.5,5.27466]
[1721161238454,2.87904,3473.4,3472.8,0.30022727]
[1721161238855,2.87904,3473.4,3472.9,0.55]
[1721161239053,3.77579971,3473.6,3472.9,0.55]
[1721161239266,2.87889,3473.6,3473.0,2.3949]
[1721161239476,2.87889,3473.6,3473.1,0.55]
[1721161239675,2.87896,3473.5,3473.1,0.55]
[1721161240645,2.87896,3473.5,3472.9,0.55]
[1721161241940,0.78503993,3473.6,3472.9,0.55]
[1721161242141,2.87932,3473.1,3472.8,0.30022727]
[1721161242580,5.75867,3473.1,3472.8,0.30022727]
[1721161242745,2.8794,3473.0,3472.8,0.30022727]
[1721161243143,2.8794,3473.0,3472.6,2.405]
[1721161243341,2.8794,3473.0,3472.7,0.55]
[1721161243556,2.8794,3473.0,3472.2,2.4688]
[1721161243557,2.87952,3472.8,3472.2,2.4688]
[1721161243964,2.87952,3472.8,3472.3,0.29995774]
[1721161244185,2.87978,3472.5,3472.3,0.29995774]
[1721161244968,2.87978,3472.5,3471.9,2.4688]
[1721161245298,1.47278171,3473.0,3472.0,0.29948054]
[1721161245444,3.14634613,3472.9,3472.0,0.29948054]
[1721161245650,2.87994,3472.3,3471.7,7.37]
[1721161245849,2.87991,3472.4,3472.0,0.29947027]
[1721161245850,2.88004,3472.2,3472.0,0.29947027]
[1721161246683,2.87991,3472.4,3472.0,0.29947027]
[1721161246880,2.87978,3472.5,3472.1,0.55]
[1721161247392,2.87986,3472.4,3472.1,0.55]
[1721161248190,2.87994,3472.3,3472.1,0.55]
[1721161248385,2.88001,3472.2,3472.1,0.55]
[1721161248774,0.575972,3472.3,3471.3,2.2612]
[1721161248977,2.88036,3471.8,3471.3,2.2612]
[1721161249177,2.88036,3471.8,3471.4,0.29949626]
[1721161249671,2.88019,3472.0,3471.4,0.29949626]
[1721161249672,2.88028,3471.9,3471.4,0.29949626]
[1721161249871,2.88015,3472.1,3471.4,0.29949626]
[1721161250057,2.88018,3472.0,3471.4,0.29949626]
[1721161250689,2.88032,3471.9,3471.4,0.29949626]
[1721161250986,2.88035,3471.8,3471.5,0.55]
[1721161251152,3.456233,3472.0,3471.5,0.55]
[1721161251362,2.88043,3471.7,3471.5,0.55]
[1721161251556,2.88051,3471.6,3471.5,0.55]
[1721161251762,2.88059,3471.5,3471.4,0.29949626]
[1721161253057,2.88059,3471.5,3470.3,15.24]
[1721161253058,2.88136,3470.6,3470.3,7.37]
[1721161253358,2.88152,3470.4,3470.1,0.1525938]
[1721161253553,2.8816,3470.3,3470.1,0.1525938]
[1721161254361,2.88167,3470.2,3470.1,0.1525938]
[1721161254579,0.288136,3470.6,3470.1,0.1525938]
[1721161255174,2.88161,3470.3,3470.1,0.1525938]
[1721161255691,2.88147,3470.5,3470.1,0.1525938]
[1721161255894,2.88151,3470.4,3470.2,0.55]
[1721161256112,2.88159,3470.3,3470.2,0.55]
[1721161257158,6.21427812,3470.3,3470.2,0.55]
[1721161257362,2.88167,3470.2,3470.1,0.1525938]
[1721161258909,2.88155,3470.4,3470.1,0.7025938]
[1721161259097,2.88143,3470.5,3470.2,0.55]
[1721161259487,2.88126,3470.7,3470.2,0.55]
[1721161259687,2.88134,3470.6,3470.2,0.55]
[1721161260513,2.88119,3470.8,3470.2,0.55]
[1721161260720,3.169309,3470.8,3470.2,0.55]
[1721161261491,2.88142,3470.5,3470.2,0.55]
[1721161261692,2.88158,3470.4,3470.2,0.55]
[1721161262089,0.288119,3470.8,3470.2,0.55]
[1721161262090,2.88133,3470.7,3470.2,0.55]
[1721161262291,2.88119,3470.8,3470.2,0.55]
[1721161262499,2.88104,3471.0,3470.2,0.55]
[1721161262697,2.88104,3471.0,3470.2,1.19662738]
[1721161262993,2.88123,3470.8,3470.2,1.19662738]
[1721161263421,2.88127,3470.7,3470.2,0.55]
[1721161263602,2.88135,3470.6,3470.2,0.55]
[1721161264228,2.88149,3470.5,3470.2,0.55]
[1721161264599,2.88159,3470.3,3470.2,0.55]
[1721161265306,2.88145,3470.5,3470.2,0.55]
[1721161265625,2.88079,3471.3,3470.2,0.55]
[1721161265834,2.88116,3470.9,3470.2,0.55]
[1721161266194,2.88134,3470.6,3470.2,0.55]
[1721161266602,2.88151,3470.4,3470.2,0.55]
[1721161266928,2.88159,3470.3,3470.2,0.55]
[1721161268859,5.76318,3470.3,3470.2,0.55]
[1721161269048,6.339498,3470.3,3470.2,0.55]
[1721161269420,6.339498,3470.3,3470.1,0.1525938]
[1721161269421,5.76334,3470.2,3470.1,0.1525938]
[1721161269912,11.64501,3470.2,3470.1,0.1525938]
[1721161270375,2.88292,3468.7,3468.4,2.3647]
[1721161270648,2.88292,3468.7,3468.1,7.37]
[1721161270850,2.8826,3469.1,3468.2,2.88332]
[1721161271062,2.88234,3469.4,3468.3,2.88324]
[1721161271228,3.0,3469.8,3468.2,2.3647]
[1721161271564,3.0,3469.8,3468.6,2.88295]
[1721161271565,2.88224,3469.6,3468.6,2.88295]
[1721161271765,2.88224,3469.6,3468.7,2.88291]
[1721161271915,2.88201,3469.8,3468.5,2.435]
[1721161272272,2.88168,3470.2,3469.2,2.88243]
[1721161272412,2.88168,3470.2,3469.3,0.55]
[1721161272616,2.88163,3470.3,3469.5,2.88225]
[1721161272923,2.346,3471.2,3469.6,0.55]
[1721161272924,2.88167,3470.2,3469.6,0.55]
[1721161273148,2.88188,3470.0,3469.6,0.55]
[1721161273475,2.88193,3469.9,3469.5,0.55]
[1721161274053,2.88207,3469.8,3469.5,0.55]
[1721161274254,2.88207,3469.8,3469.1,2.3055]
[1721161274255,2.88207,3469.8,3469.2,0.55]
[1721161274767,2.88209,3469.7,3469.2,0.55]
[1721161274939,2.88228,3469.5,3469.2,0.55]
[1721161275141,2.88228,3469.5,3468.9,0.55]
[1721161275686,2.88242,3469.3,3468.8,3.0]
[1721161275844,2.88242,3469.3,3468.7,2.3506]
[1721161276269,2.88259,3469.1,3468.7,2.3506]
[1721161276471,2.88267,3469.0,3468.3,2.4699]
[1721161276776,2.88251,3469.2,3468.3,2.4699]
[1721161276777,2.88275,3468.9,3468.3,2.4699]
[1721161277550,2.88264,3469.1,3468.3,2.4699]
[1721161277859,2.88268,3469.0,3468.3,2.4699]
[1721161278064,3.458542,3469.7,3468.4,0.55]
[1721161278065,0.576402,3469.7,3468.4,0.55]
[1721161278267,3.0,3469.9,3468.5,2.88302]
[1721161278563,2.88226,3469.5,3468.6,3.433]
[1721161278765,2.88212,3469.7,3468.6,2.883]
[1721161278766,2.88237,3469.4,3468.6,2.883]
[1721161278941,2.88237,3469.4,3468.7,0.55]
[1721161279147,2.88245,3469.3,3468.7,0.55]
[1721161279558,2.88317,3468.4,3467.7,10.25374]
[1721161279743,2.88317,3468.4,3467.7,2.88374]
[1721161280617,2.88317,3468.4,3467.5,2.88392]
[1721161280941,2.88306,3468.6,3467.8,2.88367]
[1721161281141,9.6358,3469.7,3468.1,2.3994]
[1721161281358,2.8826,3469.1,3468.4,2.88314]
[1721161281596,2.8826,3469.1,3468.1,5.28278]
[1721161281880,2.8826,3469.1,3468.4,2.88312]
[1721161282067,2.8826,3469.1,3468.5,0.55]
[1721161282268,0.96358,3469.6,3468.5,3.43308]
[1721161282473,2.88239,3469.4,3468.5,0.55]
[1721161282646,2.8826,3469.1,3468.4,3.43317]
[1721161283205,2.8826,3469.1,3468.4,0.55]
[1721161283420,2.8826,3469.1,3468.1,2.3994]
[1721161283421,2.88284,3468.9,3468.3,0.55]
[1721161283565,2.88284,3468.9,3468.1,2.3994]
[1721161283566,0.288284,3468.8,3468.2,0.55]
[1721161283763,2.8828,3468.9,3468.2,0.55]
[1721161284594,2.88272,3469.0,3468.2,0.55]
[1721161284791,2.88283,3468.9,3468.2,0.55]
[1721161285006,5.4032,3469.4,3468.2,0.55]
[1721161285167,2.88312,3468.5,3467.6,2.3527]
[1721161285369,2.88318,3468.4,3467.6,2.3527]
[1721161285565,2.88326,3468.3,3467.6,2.3527]
[1721161285973,2.88326,3468.3,3467.6,5.23653]
[1721161286592,2.88303,3468.6,3467.8,2.88367]
[1721161286771,2.88303,3468.6,3467.9,0.55]
[1721161287204,2.88297,3468.7,3467.9,0.55]
[1721161287719,2.88305,3468.6,3467.9,0.55]
[1721161287872,2.88314,3468.5,3467.9,0.55]
[1721161288242,2.88314,3468.5,3467.7,0.55]
[1721161289036,2.88305,3468.6,3467.8,2.88364]
[1721161289217,2.88313,3468.5,3467.9,0.55]
[1721161289401,2.88313,3468.5,3467.7,3.43374]
[1721161290139,2.88339,3468.2,3467.7,0.55]
[1721161290342,2.8835,3468.1,3467.2,5.18965]
[1721161290515,0.61797174,3468.5,3467.1,2.88425]
[1721161290843,2.88327,3468.3,3467.4,2.88392]
[1721161291134,2.88342,3468.1,3467.4,2.88392]
[1721161291337,2.88331,3468.3,3467.5,2.88385]
[1721161291897,2.88331,3468.3,3467.6,3.43382]
[1721161292100,2.88291,3468.8,3468.1,2.2511]
[1721161292305,2.88292,3468.7,3468.2,0.55]
[1721161292506,2.88314,3468.5,3468.2,0.55]
[1721161292912,2.88325,3468.3,3468.2,0.55]
[1721161293732,2.88262,3469.1,3468.2,0.55]
[1721161293915,2.88262,3469.1,3468.3,2.88325]
[1721161294098,2.88262,3469.1,3468.4,0.55]
[1721161294332,2.88276,3468.9,3468.4,0.55]
[1721161294502,2.88262,3469.1,3468.2,3.43333]
[1721161294706,2.88245,3469.3,3468.3,2.88324]
[1721161294951,2.88245,3469.3,3468.4,0.55]
[1721161295117,2.2659,3470.1,3468.4,0.55]
[1721161295322,2.88245,3469.3,3468.5,2.33]
[1721161295649,2.88245,3469.3,3468.6,3.43295]
[1721161295812,2.88203,3469.8,3469.0,2.88259]
[1721161296015,2.88203,3469.8,3468.6,0.55]
[1721161296016,2.88198,3469.9,3469.1,0.55]
[1721161296222,2.88201,3469.8,3469.1,3.43258]
[1721161296515,2.88178,3470.1,3469.2,2.88248]
[1721161296733,5.14728,3470.6,3469.3,2.9741]
[1721161296918,2.88177,3470.1,3469.3,2.9741]
[1721161298111,5.2659,3470.6,3469.3,2.9741]
[1721161298347,2.88191,3470.0,3469.3,2.9741]
[1721161298748,0.288191,3470.0,3469.3,0.55]
[1721161299033,2.88223,3469.6,3469.3,0.55]
[1721161299365,2.8821,3469.7,3469.3,0.55]
[1721161299573,2.88219,3469.6,3469.0,0.55]
[1721161299770,2.88251,3469.2,3468.8,2.3682]
[1721161300468,2.88251,3469.2,3468.3,2.4401]
[1721161300668,2.88251,3469.2,3468.4,5.67652]
[1721161300832,2.88251,3469.2,3468.4,2.79335]
[1721161301031,2.88259,3469.1,3468.4,2.79335]
[1721161301339,2.88259,3469.1,3468.5,0.55]
[1721161301576,2.88259,3469.1,3468.4,3.55]
[1721161302085,2.88251,3469.2,3468.4,6.43317]
[1721161303862,2.88234,3469.4,3468.4,6.43317]
[1721161304065,2.88202,3469.8,3468.5,1.624327]
[1721161304253,2.88211,3469.7,3469.0,2.88262]
[1721161304458,2.88211,3469.7,3469.1,0.55]
[1721161304768,2.88218,3469.6,3469.1,0.55]
[1721161304968,3.4586,3469.6,3468.9,0.55]
[1721161305206,0.57642,3469.6,3468.9,3.43275]
[1721161305356,2.88202,3469.8,3469.0,2.88266]
[1721161305556,6.051961,3470.0,3469.1,0.55]
[1721161305799,2.88194,3469.9,3469.2,2.3911]
[1721161305953,2.88194,3469.9,3469.3,0.55]
[1721161306156,2.88201,3469.8,3469.3,0.55]
[1721161306360,0.9052001,3469.9,3469.3,0.55]
[1721161306579,2.88192,3469.9,3469.3,0.55]
[1721161306764,2.88182,3470.1,3469.3,0.55]
[1721161307087,2.88193,3469.9,3469.3,0.55]
[1721161308286,2.88201,3469.8,3469.3,0.55]
[1721161308455,2.88206,3469.8,3469.3,0.55]
[1721161308886,2.88211,3469.7,3469.3,0.55]
[1721161309074,2.88198,3469.9,3469.3,0.55]
[1721161309283,2.8817,3470.2,3469.3,0.60764782]
[1721161309456,2.8817,3470.2,3469.3,0.60764115]
[1721161309663,2.8817,3470.2,3469.4,2.88233]
[1721161309864,2.8817,3470.2,3469.5,0.55]
[1721161310075,1.19587962,3470.9,3470.4,2.88151]
[1721161310364,2.88093,3471.1,3470.3,2.88157]
[1721161310365,2.88093,3471.1,3470.5,0.55]
[1721161310718,2.88076,3471.3,3470.5,0.55]
[1721161310719,3.457189,3471.0,3470.5,0.55]
[1721161311011,0.576169,3471.0,3470.5,0.55]
[1721161311216,1.19587962,3471.5,3470.6,5.31033]
[1721161311421,1.19587962,3471.5,3470.7,0.55]
[1721161311702,1.19587962,3471.7,3470.7,0.55]
[1721161311857,1.19587962,3471.9,3470.9,2.88104]
[1721161312061,1.19587962,3471.9,3471.0,0.55]
[1721161312302,0.26903582,3471.8,3471.0,0.55]
[1721161312594,1.19587962,3472.0,3471.0,0.55]
[1721161312767,1.19587962,3472.0,3470.9,2.88107]
[1721161312972,1.19587962,3472.0,3471.0,0.55]
[1721161313291,1.19587962,3472.1,3471.0,0.55]
[1721161313707,9.6233,3472.7,3471.0,3.43101]
[1721161313708,4.19587962,3472.2,3471.0,3.43101]
[1721161314001,11.42057405,3472.7,3471.0,3.43101]
[1721161314002,3.0,3472.1,3471.0,3.43101]
[1721161314502,1.19587962,3472.4,3471.0,0.55]
[1721161314659,1.19587962,3472.4,3470.6,2.429]
[1721161314660,1.19587962,3472.3,3470.9,2.88109]
[1721161314865,1.19587962,3472.3,3471.0,0.55]
[1721161315061,1.46504261,3472.2,3471.0,0.55]
[1721161315262,0.26916299,3472.2,3471.0,0.55]
[1721161315462,3.26916299,3472.2,3471.0,0.55]
[1721161315662,0.26916299,3472.2,3471.0,0.55]
[1721161316260,0.26916299,3472.2,3471.0,3.48861446]
[1721161316462,0.26916299,3472.2,3471.0,4.12559291]
[1721161316697,0.26916299,3472.2,3471.1,2.88085]
[1721161316911,0.26916299,3472.2,3471.2,0.55]
[1721161317328,3.0,3472.8,3471.2,3.43079]
[1721161318016,3.0,3472.8,3471.2,0.55]
[1721161318236,3.0,3472.8,3471.1,0.55]
[1721161318422,4.19587962,3472.8,3470.9,3.43109]
[1721161318591,3.0,3472.8,3470.9,3.43109]
[1721161318926,0.72308796,3472.7,3471.0,2.88099]
[1721161319091,0.72308796,3472.7,3471.1,0.55]
[1721161319518,0.72308796,3472.7,3471.0,0.55]
[1721161319926,0.72308796,3472.7,3471.0,3.43101]
[1721161320494,6.035,3472.8,3471.0,3.43101]
[1721161320751,6.035,3472.8,3471.0,0.55]
[1721161320889,6.035,3472.8,3470.8,2.88112]
[1721161320890,6.035,3472.8,3470.9,0.55]
[1721161321090,6.035,3472.8,3470.7,2.88124]
[1721161321091,6.035,3472.8,3470.8,3.43116]
[1721161321491,2.3054,3472.7,3470.8,0.55]
[1721161321734,3.98862796,3472.6,3470.6,2.429]
[1721161322036,3.035,3472.4,3470.6,8.31032]
[1721161322334,3.0,3472.3,3470.6,8.31032]
[1721161322718,2.88073,3471.4,3470.6,8.31032]
[1721161322923,2.88055,3471.6,3470.6,8.31032]
[1721161323231,2.8806,3471.5,3470.7,1.72680128]
[1721161323462,2.8806,3471.5,3470.7,7.60804128]
[1721161323661,2.88035,3471.8,3470.7,4.669182]
[1721161323830,2.88023,3472.0,3471.1,2.88092]
[1721161324046,2.88023,3472.0,3471.2,0.55]
[1721161324562,2.88013,3472.1,3471.2,0.55]
[1721161324757,3.468143,3472.1,3471.2,0.55]
[1721161324949,3.468143,3472.1,3471.3,2.4829]
[1721161325120,3.468143,3472.1,3471.4,0.55]
[1721161325551,0.588013,3472.1,3471.4,0.55]
[1721161325980,3.0,3472.5,3471.4,0.55]
[1721161326121,3.0,3472.5,3471.1,0.55]
[1721161326431,6.98862796,3472.6,3471.1,0.55]
[1721161326761,6.98862796,3472.6,3470.8,2.4829]
[1721161326960,3.035,3472.4,3470.8,2.4829]
[1721161327176,0.9294028,3472.5,3470.3,3.26]
[1721161327177,3.035,3472.0,3470.3,2.3919]
[1721161327675,2.88091,3471.2,3470.3,5.27348]
[1721161328030,2.88107,3471.0,3470.4,3.0]
[1721161328452,2.88107,3471.0,3470.3,2.3919]
[1721161328889,2.88107,3471.0,3470.4,0.55]
[1721161329176,2.88107,3471.0,3470.4,3.55]
[1721161329677,2.8811,3470.9,3470.4,3.55]
[1721161330885,2.88125,3470.8,3470.4,0.55]
[1721161331178,2.88142,3470.5,3470.0,7.37]
[1721161331380,2.88142,3470.5,3469.7,5.22242]
[1721161331543,2.88142,3470.5,3469.8,2.88195]
[1721161331738,2.88142,3470.5,3469.8,3.692387]
[1721161332185,2.88142,3470.5,3469.8,0.810437]
[1721161332355,2.88167,3470.3,3469.7,2.3404]
[1721161332558,2.88168,3470.2,3469.7,2.3404]
[1721161332758,2.8818,3470.1,3469.7,2.3404]
[1721161332953,2.88166,3470.3,3469.7,2.3404]
[1721161333181,2.88168,3470.2,3469.7,2.3404]
[1721161333553,0.576205,3470.9,3469.7,3.162673]
[1721161333758,2.8815,3470.5,3469.7,3.162673]
[1721161334284,2.88112,3470.9,3469.9,2.88187]
[1721161334452,2.88112,3470.9,3470.1,2.88173]
[1721161334453,2.88118,3470.8,3470.1,2.88173]
[1721161334780,2.88112,3470.9,3470.1,3.89409]
[1721161334994,2.88118,3470.8,3470.2,0.55]
[1721161336869,2.88106,3471.0,3470.2,0.55]
[1721161337075,2.88086,3471.2,3470.3,2.317]
[1721161337363,2.88086,3471.2,3470.4,3.819436]
[1721161338066,2.88093,3471.1,3470.4,3.819436]
[1721161338461,5.76194,3471.1,3470.4,3.819436]
[1721161338665,5.76194,3471.1,3470.4,0.55]
[1721161338666,2.88107,3471.0,3470.4,0.55]
[1721161339980,2.8811,3470.9,3470.4,0.55]
[1721161340889,2.88093,3471.1,3470.4,0.55]
[1721161341595,2.88105,3471.0,3470.4,0.55]
[1721161342200,2.8811,3470.9,3470.4,0.55]
[1721161342358,2.88134,3470.6,3470.3,2.317]
[1721161343870,2.88134,3470.6,3470.4,0.55]
[1721161344069,2.88118,3470.8,3470.4,0.55]
[1721161344515,2.88127,3470.7,3470.4,0.55]
[1721161345771,2.88118,3470.8,3470.4,0.55]
[1721161345975,2.88086,3471.2,3470.4,0.8367]
[1721161346223,2.88086,3471.2,3470.4,3.77583359]
[1721161346427,2.88086,3471.2,3470.4,3.71821]
[1721161346712,9.6738,3472.2,3470.8,2.88112]
[1721161346713,2.88055,3471.6,3470.8,2.88112]
[1721161346925,1.49410884,3472.3,3471.1,5.32392]
[1721161346926,2.88021,3472.0,3471.1,5.32392]
[1721161347078,2.88021,3472.0,3471.2,2.8636]
[1721161349339,2.88036,3471.8,3471.2,2.8636]
[1721161350609,2.88021,3472.0,3471.2,2.8636]
[1721161351107,2.88028,3471.9,3471.2,2.8636]
[1721161351337,2.88015,3472.1,3471.2,5.74443]
[1721161351493,2.88004,3472.2,3471.2,5.74443]
[1721161351694,2.88004,3472.2,3471.3,2.88076]
[1721161351937,2.88004,3472.2,3471.4,0.60760574]
[1721161352430,1.19587962,3472.4,3471.5,2.88057]
[1721161352635,1.19587962,3472.4,3471.6,0.60760642]
[1721161352941,1.19587962,3472.7,3471.9,2.2788]
[1721161353233,1.46514724,3472.7,3472.0,0.55]
[1721161353431,1.19587962,3472.8,3472.0,0.55]
[1721161353646,1.19587962,3472.8,3472.0,3.43017]
[1721161354438,1.19587962,3472.8,3472.0,0.55]
[1721161354664,1.19587962,3472.6,3472.0,0.55]
[1721161355666,1.19587962,3472.7,3472.0,0.55]
[1721161356736,1.19587962,3472.6,3472.0,0.55]
[1721161357965,1.19587962,3472.7,3472.0,0.55]
[1721161358151,1.19587962,3472.8,3472.0,0.55]
[1721161358373,0.26961645,3472.7,3472.0,0.55]
[1721161358769,1.46549607,3472.7,3472.0,0.55]
[1721161359466,1.19587962,3472.8,3472.0,0.55]
[1721161360244,4.80067797,3473.3,3472.0,0.55]
[1721161360245,1.19587962,3472.7,3472.0,0.55]
[1721161360564,1.19587962,3472.8,3472.0,0.55]
[1721161361145,4.80067797,3473.3,3472.0,0.55]
[1721161361146,1.19587962,3472.9,3472.0,0.55]
[1721161361353,0.26964446,3472.8,3472.0,0.55]
[1721161362129,1.19587962,3473.0,3472.0,3.43018]
[1721161362355,1.19587962,3473.1,3472.0,3.43018]
[1721161362549,1.19587962,3473.1,3472.0,3.48777787]
[1721161363272,1.19587962,3473.1,3472.0,3.43018]
[1721161364765,1.19587962,3473.2,3472.0,3.43018]
[1721161364943,0.56963655,3473.1,3472.0,3.43018]
[1721161365477,1.76551617,3473.1,3472.0,0.55]
[1721161365767,1.19587962,3473.0,3472.0,0.55]
[1721161366330,1.19587962,3472.9,3472.0,0.55]
[1721161366534,0.62660021,3472.8,3472.0,0.55]
[1721161368149,1.19587962,3472.9,3472.0,0.55]
[1721161368344,1.19587962,3473.0,3472.0,0.55]
[1721161368760,4.76551617,3473.1,3472.0,0.55]
[1721161369233,1.76551617,3473.1,3472.0,0.55]
[1721161369435,0.56963655,3473.1,3472.0,3.48776764]
[1721161369635,0.56963655,3473.1,3472.0,4.0644244]
[1721161369837,0.56963655,3473.1,3472.3,2.3044]
[1721161370071,4.19587962,3473.3,3472.4,0.55]
[1721161370378,1.19587962,3473.2,3472.4,0.55]
[1721161370991,4.19587962,3473.3,3472.4,0.55]
[1721161371274,3.0,3473.3,3472.4,0.55]
[1721161371476,1.19587962,3473.3,3472.4,0.55]
[1721161371637,0.56955727,3473.2,3472.4,0.55]
[1721161373190,4.19587962,3473.5,3472.4,0.55]
[1721161373342,1.19587962,3473.4,3472.4,0.55]
[1721161373879,2.87976,3472.5,3472.4,0.55]
[1721161375550,2.87972,3472.6,3472.4,0.55]
[1721161375755,2.87974,3472.6,3472.4,0.55]
[1721161376276,2.87953,3472.8,3472.4,0.55]
[1721161376463,2.87953,3472.8,3472.2,0.55]
[1721161376642,2.87953,3472.8,3472.2,1.10912643]
[1721161377071,1.19587962,3473.3,3472.2,1.10912643]
[1721161377341,1.19587962,3473.3,3472.2,0.55]
[1721161377541,1.19587962,3473.2,3472.2,0.55]
[1721161377766,1.19587962,3473.2,3471.9,5.13558]
[1721161377767,1.19587962,3473.2,3472.0,0.55]
[1721161378171,1.19587962,3473.3,3472.0,3.43017]
[1721161378347,1.69772705,3473.3,3472.1,0.856575]
[1721161378554,1.69772705,3473.3,3472.2,0.55]
[1721161379163,1.19587962,3473.2,3472.2,0.55]
[1721161379363,0.50184743,3473.3,3472.3,2.4984]
[1721161379538,1.69772705,3473.3,3472.4,0.55]
[1721161379739,0.619439,3473.2,3472.4,0.55]
[1721161380372,4.19587962,3473.5,3472.4,0.55]
[1721161381763,2.87957,3472.8,3472.4,0.55]
[1721161382450,5.75916,3472.8,3472.4,0.55]
[1721161382790,2.87974,3472.6,3472.4,0.55]
[1721161383447,2.87976,3472.5,3472.4,0.55]
[1721161387657,5.75952,3472.5,3472.4,0.55]